bitfinex-derivatives/quotes_SOLF0:USTF0_20260311
["timestamp","ask_amount","ask_price","bid_price","bid_amount"]
[1773257252663,3.64272527,87.26,87.185,14.42]
[1773257252664,3.64272527,87.26,87.208,3.4853067]
[1773257252865,3.64272527,87.259,87.2,2.45031712]
[1773257253063,3.64272527,87.257,87.2,2.45031712]
[1773257253264,3.64272527,87.256,87.2,2.45031712]
[1773257253862,2.86401213,87.255,87.2,2.45031712]
[1773257254069,3.64272527,87.253,87.2,2.45031712]
[1773257254255,3.64272527,87.241,87.2,2.45031712]
[1773257255465,3.64272527,87.241,87.201,10.319]
[1773257257666,3.64272527,87.241,87.201,13.82947999]
[1773257259262,3.64272527,87.239,87.201,3.51047999]
[1773257259969,3.64272527,87.239,87.203,3.50900545]
[1773257262668,14.44,87.262,87.211,3.52305529]
[1773257262873,3.8518063,87.26,87.211,3.52305529]
[1773257263072,2.86476362,87.259,87.211,3.52305529]
[1773257263273,3.8518063,87.257,87.211,3.52305529]
[1773257263479,3.8518063,87.255,87.211,3.52305529]
[1773257263678,3.8518063,87.253,87.211,3.52305529]
[1773257263881,3.8518063,87.251,87.211,3.52305529]
[1773257264182,3.8518063,87.249,87.211,3.52305529]
[1773257264382,3.8518063,87.249,87.211,13.84105529]
[1773257266679,3.8518063,87.249,87.214,10.317]
[1773257268485,3.8518063,87.249,87.212,3.51737994]
[1773257269286,3.8518063,87.247,87.212,3.51737994]
[1773257269882,3.8518063,87.247,87.215,10.317]
[1773257270688,3.8518063,87.247,87.212,3.51737994]
[1773257271185,3.8518063,87.247,87.19,5.95991705]
[1773257271378,2.45031712,87.25,87.19,5.95991705]
[1773257271379,3.99894347,87.237,87.198,10.319]
[1773257271984,3.99894347,87.237,87.198,13.82859993]
[1773257272183,3.99894347,87.237,87.199,3.50959993]
[1773257272383,3.99894347,87.237,87.202,3.50959993]
[1773257278597,3.99894347,87.237,87.189,3.28213794]
[1773257279198,3.99894347,87.237,87.191,3.28213794]
[1773257279397,10.316,87.228,87.192,3.28213794]
[1773257280701,3.99894347,87.227,87.192,3.28213794]
[1773257281700,10.316,87.225,87.192,3.28213794]
[1773257283996,3.99894347,87.227,87.192,3.28213794]
[1773257284201,3.99894347,87.238,87.192,3.28213794]
[1773257284403,3.99894347,87.236,87.192,3.28213794]
[1773257284597,3.99894347,87.236,87.197,3.27285084]
[1773257285903,10.315,87.234,87.2,10.319]
[1773257286104,10.315,87.234,87.201,3.27285084]
[1773257288506,3.99894347,87.233,87.201,3.27285084]
[1773257290510,10.316,87.224,87.201,3.27285084]
[1773257290709,3.99894347,87.233,87.201,3.27285084]
[1773257292201,3.99894347,87.233,87.19,5.74848332]
[1773257292405,3.99894347,87.233,87.191,3.29573187]
[1773257293512,3.99894347,87.232,87.194,10.32]
[1773257293714,3.99894347,87.232,87.181,3.27636435]
[1773257295008,2.45275145,87.24,87.181,3.27636435]
[1773257295009,3.99894347,87.223,87.181,3.27636435]
[1773257295211,3.99894347,87.223,87.171,3.24396121]
[1773257295415,3.99894347,87.209,87.159,3.24396121]
[1773257295713,3.99894347,87.2,87.147,3.24396121]
[1773257295912,3.99894347,87.198,87.147,3.24396121]
[1773257296114,3.99894347,87.196,87.147,3.24396121]
[1773257296705,3.99894347,87.196,87.151,3.24118389]
[1773257297009,10.32,87.192,87.151,3.24118389]
[1773257297714,3.99894347,87.189,87.151,3.24118389]
[1773257300816,10.32,87.196,87.151,3.24118389]
[1773257301120,3.81500633,87.195,87.151,3.24118389]
[1773257304915,3.81500633,87.193,87.151,3.24118389]
[1773257305811,3.81500633,87.191,87.151,3.24118389]
[1773257308313,3.81500633,87.188,87.151,3.24118389]
[1773257308517,3.81500633,87.179,87.128,3.3055652]
[1773257309413,2.45275145,87.18,87.128,3.3055652]
[1773257309414,3.81500633,87.178,87.128,3.3055652]
[1773257310116,3.81500633,87.171,87.129,10.327]
[1773257311415,3.81500633,87.171,87.129,13.63211331]
[1773257311716,3.81500633,87.171,87.132,10.327]
[1773257313616,3.81500633,87.171,87.135,10.327]
[1773257314020,3.81500633,87.171,87.136,3.30738576]
[1773257316629,3.81500633,87.189,87.141,3.30652717]
[1773257317329,3.81500633,87.189,87.149,10.325]
[1773257317521,3.81500633,87.189,87.141,3.30652717]
[1773257317921,10.32,87.194,87.149,3.30942426]
[1773257318122,3.81500633,87.193,87.151,3.30942426]
[1773257318628,3.81500633,87.191,87.151,3.30942426]
[1773257319729,3.81500633,87.191,87.153,10.325]
[1773257321023,3.81500633,87.191,87.153,13.66280962]
[1773257326033,3.81500633,87.191,87.153,10.325]
[1773257328625,3.86439664,87.189,87.153,10.325]
[1773257329437,3.86439664,87.186,87.152,3.23948222]
[1773257332037,3.86439664,87.186,87.116,21.38225794]
[1773257332038,3.70472064,87.175,87.121,3.22999934]
[1773257332242,3.70472064,87.175,87.067,35.67001218]
[1773257332243,3.70472064,87.169,87.11,5.68275079]
[1773257332442,3.70472064,87.167,87.111,3.22999934]
[1773257332842,10.325,87.152,87.112,3.23084018]
[1773257333445,3.70472064,87.155,87.113,10.329]
[1773257333645,3.70472064,87.155,87.113,13.55984018]
[1773257333842,3.70472064,87.155,87.114,3.23084018]
[1773257336237,10.325,87.15,87.114,3.23084018]
[1773257336443,3.70472064,87.155,87.114,3.23084018]
[1773257337343,3.70472064,87.155,87.115,3.23084881]
[1773257337542,3.70472064,87.172,87.121,3.23084881]
[1773257337740,2.45275145,87.18,87.121,3.23084881]
[1773257337741,3.70472064,87.17,87.121,3.23084881]
[1773257338148,3.70472064,87.168,87.112,3.23084881]
[1773257338845,3.70472064,87.159,87.112,3.23084881]
[1773257339441,3.70472064,87.155,87.112,3.23084881]
[1773257339749,3.70472064,87.154,87.112,3.23084881]
[1773257340645,3.70472064,87.153,87.112,3.23084881]
[1773257342554,3.70472064,87.153,87.112,13.55984881]
[1773257343655,3.70472064,87.153,87.118,13.59922777]
[1773257345050,3.70472064,87.152,87.11,12.78275145]
[1773257345256,3.70472064,87.152,87.101,3.26092076]
[1773257345659,3.70472064,87.152,87.116,3.26092076]
[1773257345957,8.64497008,87.187,87.121,3.26092076]
[1773257345958,14.44,87.155,87.121,3.26092076]
[1773257346156,14.44,87.162,87.121,3.26092076]
[1773257346352,3.70472064,87.164,87.131,3.26092076]
[1773257346554,3.70472064,87.175,87.131,3.26092076]
[1773257347150,10.322,87.174,87.132,10.327]
[1773257347355,10.322,87.174,87.133,3.25578293]
[1773257347554,14.02672064,87.174,87.133,3.25578293]
[1773257348060,10.322,87.172,87.133,3.25578293]
[1773257348960,14.02672064,87.172,87.133,3.25578293]
[1773257349158,3.70472064,87.169,87.133,3.25578293]
[1773257350358,10.324,87.161,87.133,3.25578293]
[1773257350556,3.70472064,87.169,87.133,3.25578293]
[1773257351361,3.70472064,87.169,87.077,34.39]
[1773257351362,3.70472064,87.157,87.111,3.25457337]
[1773257352365,3.70472064,87.157,87.113,3.25457337]
[1773257353665,3.70472064,87.156,87.113,3.25457337]
[1773257354061,3.70472064,87.153,87.113,3.25457337]
[1773257354568,3.70472064,87.153,87.12,2.4562532]
[1773257354862,3.70472064,87.153,87.079,20.667]
[1773257354863,3.70472064,87.162,87.124,10.328]
[1773257355869,3.70472064,87.162,87.121,3.18288813]
[1773257355870,3.70472064,87.16,87.121,3.18288813]
[1773257359070,3.70472064,87.185,87.141,3.13406509]
[1773257359266,3.70472064,87.183,87.141,3.13406509]
[1773257360068,3.70472064,87.183,87.143,10.326]
[1773257362070,3.87430165,87.181,87.143,10.326]
[1773257364473,18.31430165,87.202,87.161,3.14969629]
[1773257365966,3.87430165,87.201,87.161,3.14969629]
[1773257366163,18.31430165,87.201,87.161,3.14969629]
[1773257366371,10.319,87.2,87.161,13.47369629]
[1773257367569,14.19330165,87.2,87.161,3.14969629]
[1773257367770,10.32,87.195,87.161,3.14969629]
[1773257374676,10.32,87.189,87.161,3.14969629]
[1773257375273,10.32,87.196,87.161,3.14969629]
[1773257375472,3.87430165,87.208,87.17,5.53858815]
[1773257375675,3.87430165,87.208,87.171,3.08233495]
[1773257376380,3.87430165,87.208,87.171,13.40433495]
[1773257379176,3.87430165,87.208,87.18,2.4562532]
[1773257386586,10.319,87.205,87.18,2.4562532]
[1773257386786,10.319,87.205,87.171,3.08233495]
[1773257387490,14.20310171,87.205,87.171,3.08233495]
[1773257388094,3.88410171,87.204,87.171,3.08233495]
[1773257391484,3.88410171,87.204,87.18,2.4562532]
[1773257393087,3.88410171,87.204,87.171,3.08233495]
[1773257394496,3.88410171,87.204,87.18,2.4562532]
[1773257395696,10.319,87.203,87.18,2.4562532]
[1773257400401,14.44,87.225,87.191,3.1621693]
[1773257400596,14.44,87.226,87.2,2.4562532]
[1773257400806,3.96757893,87.214,87.18,2.4562532]
[1773257400995,3.96757893,87.214,87.16,2.4562532]
[1773257401195,2.4562532,87.22,87.16,2.4562532]
[1773257401196,3.96757893,87.212,87.161,3.18642654]
[1773257401398,3.96757893,87.21,87.161,3.18642654]
[1773257401697,3.96757893,87.193,87.15,2.4562532]
[1773257401893,3.96757893,87.179,87.12,2.4562532]
[1773257402098,3.96757893,87.177,87.13,2.4562532]
[1773257402300,3.96757893,87.175,87.13,2.4562532]
[1773257402495,3.96757893,87.174,87.13,2.4562532]
[1773257403302,3.96757893,87.173,87.13,2.4562532]
[1773257403598,3.96757893,87.17,87.122,13.58752157]
[1773257403798,3.96757893,87.159,87.106,3.25952157]
[1773257403998,3.96757893,87.153,87.106,3.25952157]
[1773257404302,2.8660388,87.168,87.106,3.25952157]
[1773257404303,3.96757893,87.149,87.106,3.25952157]
[1773257404602,3.96757893,87.147,87.106,3.25952157]
[1773257405499,3.96757893,87.143,87.093,3.28379154]
[1773257407099,3.96757893,87.143,87.09,2.4562532]
[1773257407100,3.96757893,87.143,87.097,3.28605942]
[1773257407294,6.42383213,87.14,87.097,3.28605942]
[1773257407504,3.96757893,87.129,87.071,3.28605942]
[1773257407899,3.96757893,87.129,87.076,3.28605942]
[1773257408101,3.96757893,87.144,87.091,3.28605942]
[1773257408395,3.96757893,87.142,87.092,3.28605942]
[1773257409300,2.4562532,87.15,87.092,3.28605942]
[1773257409301,3.96757893,87.14,87.092,3.28605942]
[1773257409695,3.96757893,87.139,87.092,3.28605942]
[1773257410501,3.96757893,87.137,87.092,3.28605942]
[1773257411101,3.96757893,87.134,87.092,3.28605942]
[1773257411306,3.96757893,87.134,87.081,3.31272026]
[1773257411506,3.96757893,87.119,87.069,3.31272026]
[1773257412205,2.45857497,87.12,87.069,3.31272026]
[1773257412206,3.96757893,87.116,87.069,3.31272026]
[1773257413907,3.96757893,87.116,87.071,3.26079826]
[1773257415306,3.96757893,87.116,87.073,3.28503728]
[1773257416407,3.96757893,87.116,87.08,10.333]
[1773257416608,3.96757893,87.116,87.073,3.28503728]
[1773257419107,3.96757893,87.116,87.034,14.44]
[1773257419108,3.96757893,87.116,87.08,5.7417199]
[1773257419311,3.96757893,87.116,87.08,3.28314493]
[1773257420006,3.96757893,87.116,87.082,10.333]
[1773257420208,3.96757893,87.116,87.08,3.28314493]
[1773257420606,3.96757893,87.116,87.07,2.45857497]
[1773257421002,3.96757893,87.116,87.07,5.73985965]
[1773257421400,3.96757893,87.116,87.074,10.334]
[1773257421601,3.96757893,87.116,87.061,3.28128468]
[1773257422411,3.87301563,87.113,87.073,10.334]
[1773257422610,3.87301563,87.113,87.061,3.28128468]
[1773257422611,3.87301563,87.113,87.074,3.28128468]
[1773257423506,3.87301563,87.113,87.075,10.334]
[1773257423903,10.328,87.123,87.081,3.28970453]
[1773257424509,14.20101563,87.123,87.081,3.28970453]
[1773257424915,3.87301563,87.123,87.085,3.28968231]
[1773257425115,3.87301563,87.134,87.091,3.28968231]
[1773257425815,14.44,87.148,87.091,3.28968231]
[1773257425816,3.87301563,87.131,87.091,3.28968231]
[1773257426115,3.87301563,87.131,87.08,2.45857497]
[1773257426317,3.87301563,87.131,87.081,3.28968231]
[1773257427312,3.87301563,87.129,87.087,10.332]
[1773257428314,3.87301563,87.126,87.087,10.332]
[1773257429527,3.87301563,87.126,87.081,3.28968231]
[1773257429927,3.87301563,87.126,87.088,10.332]
[1773257430328,3.87301563,87.139,87.09,2.45857497]
[1773257430528,3.87301563,87.139,87.099,3.27516225]
[1773257431428,3.87301563,87.139,87.102,10.331]
[1773257432831,3.87301563,87.139,87.108,10.33]
[1773257433232,3.87301563,87.139,87.1,2.45857497]
[1773257433233,3.87301563,87.152,87.115,10.329]
[1773257435331,3.87301563,87.166,87.12,2.45857497]
[1773257435534,3.87301563,87.166,87.121,3.29594238]
[1773257436132,3.87301563,87.166,87.126,10.328]
[1773257436628,3.87301563,87.166,87.12,2.45857497]
[1773257436629,3.87301563,87.166,87.11,2.45857497]
[1773257436936,3.87301563,87.157,87.117,10.329]
[1773257437531,3.87301563,87.157,87.124,10.328]
[1773257440239,3.87301563,87.157,87.12,2.45857497]
[1773257442039,3.87301563,87.157,87.122,3.29637618]
[1773257442247,18.2444505,87.169,87.13,2.45857497]
[1773257442440,3.8044505,87.168,87.13,2.45857497]
[1773257442641,3.8044505,87.153,87.111,3.29637618]
[1773257443434,3.8044505,87.168,87.111,3.29637618]
[1773257443641,3.8044505,87.168,87.121,3.46258319]
[1773257444142,3.8044505,87.168,87.13,2.45857497]
[1773257444643,3.8044505,87.168,87.121,3.46258319]
[1773257445542,3.8044505,87.166,87.122,10.328]
[1773257446342,10.323,87.164,87.122,10.328]
[1773257446745,10.323,87.164,87.122,13.95001148]
[1773257447544,14.1274505,87.164,87.122,13.95001148]
[1773257448140,10.323,87.171,87.131,3.62201148]
[1773257448346,14.44,87.17,87.131,3.62201148]
[1773257449447,14.44,87.17,87.133,10.327]
[1773257450450,3.8044505,87.176,87.141,3.6117959]
[1773257451045,14.44,87.18,87.141,3.6117959]
[1773257451046,3.97075274,87.174,87.141,3.6117959]
[1773257451443,10.322,87.173,87.132,10.327]
[1773257451638,10.322,87.173,87.133,3.61186704]
[1773257452342,3.97075274,87.165,87.123,10.328]
[1773257452740,3.97075274,87.165,87.123,13.93986704]
[1773257452944,3.97075274,87.165,87.124,3.6155926]
[1773257453949,3.97075274,87.162,87.12,2.45857497]
[1773257454542,3.97075274,87.162,87.12,6.07416757]
[1773257455051,3.97075274,87.162,87.121,3.56901756]
[1773257455441,10.324,87.161,87.121,3.56901756]
[1773257456946,10.324,87.161,87.122,13.888581]
[1773257457152,3.97075274,87.162,87.13,2.45857497]
[1773257457353,3.97075274,87.162,87.13,6.01915597]
[1773257458353,3.97075274,87.162,87.134,10.327]
[1773257460150,14.44,87.172,87.134,10.327]
[1773257460349,3.97075274,87.184,87.151,3.5448203]
[1773257460550,3.97075274,87.198,87.161,3.5448203]
[1773257461350,3.97075274,87.198,87.161,13.8688203]
[1773257462655,3.97075274,87.198,87.162,3.55296451]
[1773257463851,3.97075274,87.21,87.171,3.51464132]
[1773257464056,14.44,87.215,87.18,2.45857497]
[1773257464250,3.97075274,87.218,87.18,2.45857497]
[1773257464448,3.97075274,87.218,87.171,3.51464132]
[1773257465455,3.97075274,87.218,87.177,10.322]
[1773257465656,3.97075274,87.218,87.18,2.45857497]
[1773257469560,3.97075274,87.218,87.18,2.45357307]
[1773257472760,3.97075274,87.218,87.18,5.9630248]
[1773257475562,2.86582516,87.256,87.2,5.96041527]
[1773257475563,3.97075274,87.234,87.2,5.96041527]
[1773257475761,3.97075274,87.234,87.201,3.5068422]
[1773257476067,3.97075274,87.225,87.181,10.321]
[1773257476362,3.97075274,87.223,87.178,3.5068422]
[1773257476567,3.97075274,87.221,87.178,3.5068422]
[1773257477358,3.97075274,87.199,87.14,2.45357307]
[1773257477566,2.45357307,87.2,87.14,2.45357307]
[1773257477567,3.97075274,87.189,87.14,2.45357307]
[1773257477762,3.97075274,87.189,87.141,3.5118993]
[1773257477960,3.97075274,87.202,87.151,3.5118993]
[1773257479471,3.97075274,87.199,87.154,3.49054684]
[1773257479658,10.319,87.2,87.154,3.49054684]
[1773257479865,14.44,87.207,87.161,3.49054684]
[1773257480065,14.44,87.206,87.161,3.49054684]
[1773257480268,18.17850356,87.206,87.161,3.49054684]
[1773257480470,3.73850356,87.203,87.161,3.49054684]
[1773257481569,3.73850356,87.201,87.161,3.49054684]
[1773257483372,3.73850356,87.196,87.142,3.53627683]
[1773257483568,3.73850356,87.189,87.142,3.53627683]
[1773257484173,10.322,87.174,87.142,3.53627683]
[1773257484678,3.73850356,87.178,87.142,3.53627683]
[1773257491279,10.321,87.183,87.142,3.53627683]
[1773257491981,3.73850356,87.182,87.142,3.53627683]
[1773257492386,3.73850356,87.18,87.142,3.53627683]
[1773257496389,3.73850356,87.178,87.142,3.53627683]
[1773257500788,13.96604559,87.177,87.142,3.53627683]
[1773257500991,3.64404559,87.176,87.142,3.53627683]
[1773257501694,3.64404559,87.176,87.136,10.327]
[1773257501888,3.64404559,87.176,87.136,14.12458496]
[1773257502488,10.322,87.174,87.136,14.12458496]
[1773257503787,13.96604559,87.174,87.136,14.12458496]
[1773257504797,3.64404559,87.186,87.143,3.78072945]
[1773257505596,3.64404559,87.186,87.131,3.73206809]
[1773257506194,3.64404559,87.186,87.141,3.73206809]
[1773257506396,10.322,87.175,87.141,3.73206809]
[1773257508695,10.321,87.182,87.141,3.73206809]
[1773257509586,3.64404559,87.179,87.141,3.73206809]
[1773257512103,3.66202389,87.207,87.17,2.45357307]
[1773257512402,3.66202389,87.199,87.141,3.75667417]
[1773257513194,3.66202389,87.176,87.13,2.45357307]
[1773257513391,3.66202389,87.176,87.129,3.75667417]
[1773257514198,3.66202389,87.166,87.111,3.75667417]
[1773257514801,10.324,87.159,87.115,3.75667417]
[1773257515103,3.66202389,87.166,87.115,3.75667417]
[1773257515893,3.66202389,87.166,87.12,2.45357307]
[1773257516098,3.66202389,87.166,87.121,3.75667417]
[1773257516595,3.66202389,87.166,87.124,14.08467417]
[1773257516795,3.66202389,87.166,87.125,3.75667417]
[1773257517293,10.322,87.175,87.127,3.75667417]
[1773257517697,10.322,87.175,87.13,2.45357307]
[1773257517897,3.66202389,87.174,87.131,3.75667417]
[1773257521011,3.66202389,87.174,87.134,3.75667417]
[1773257521200,13.98402389,87.173,87.134,3.75667417]
[1773257521404,3.66202389,87.172,87.134,3.75667417]
[1773257523710,3.66202389,87.183,87.141,3.75667417]
[1773257524110,3.66202389,87.181,87.141,3.75667417]
[1773257525111,3.66202389,87.178,87.141,3.75667417]
[1773257525518,3.66202389,87.178,87.095,20.663]
[1773257525519,3.66202389,87.169,87.118,3.75667417]
[1773257525720,3.66202389,87.157,87.118,3.75667417]
[1773257527112,3.66202389,87.173,87.121,3.75667417]
[1773257527316,3.66202389,87.173,87.11,6.21024724]
[1773257527515,3.66202389,87.169,87.111,3.75667417]
[1773257528314,10.324,87.158,87.112,3.75667417]
[1773257530418,10.324,87.158,87.115,3.66634655]
[1773257530719,3.66202389,87.153,87.101,3.68732694]
[1773257530920,3.66202389,87.149,87.101,3.68732694]
[1773257531118,3.66202389,87.149,87.102,10.331]
[1773257531317,3.66202389,87.149,87.103,3.68732694]
[1773257532318,10.325,87.147,87.106,10.33]
[1773257532921,13.98702389,87.147,87.106,10.33]
[1773257533220,3.66202389,87.146,87.106,10.33]
[1773257533519,3.66202389,87.146,87.067,28.53693777]
[1773257533520,3.66202389,87.12,87.079,3.6714903]
[1773257533821,3.66202389,87.12,87.081,3.6714903]
[1773257534124,3.66202389,87.12,87.084,10.333]
[1773257535025,3.66202389,87.12,87.071,3.64056813]
[1773257535223,3.66202389,87.139,87.081,3.64056813]
[1773257535622,3.66202389,87.139,87.091,3.64056813]
[1773257536328,3.66202389,87.15,87.111,3.64056813]
[1773257537622,3.66202389,87.165,87.12,2.45778375]
[1773257537829,3.66202389,87.165,87.121,3.61769013]
[1773257538925,10.323,87.164,87.121,3.61769013]
[1773257539324,3.66202389,87.165,87.13,2.45778375]
[1773257539830,3.66202389,87.165,87.121,3.61769013]
[1773257540430,3.66202389,87.165,87.121,13.94569013]
[1773257540935,3.66202389,87.165,87.123,10.328]
[1773257541626,3.66202389,87.165,87.125,10.328]
[1773257541932,3.66202389,87.165,87.126,3.63962889]
[1773257542127,10.65599702,87.212,87.143,3.63962889]
[1773257542128,3.89335161,87.199,87.143,3.63962889]
[1773257542329,3.89335161,87.197,87.143,3.63962889]
[1773257543332,10.321,87.183,87.143,3.63962889]
[1773257543633,3.89335161,87.195,87.151,3.58373654]
[1773257544131,3.89335161,87.195,87.16,2.45778375]
[1773257544330,3.89335161,87.195,87.141,3.58373654]
[1773257544536,10.32,87.194,87.15,10.325]
[1773257545232,3.89335161,87.195,87.15,10.325]
[1773257545536,3.89335161,87.195,87.153,10.325]
[1773257545731,14.44,87.205,87.161,3.56365588]
[1773257545932,3.89335161,87.21,87.161,3.56365588]
[1773257546330,3.89335161,87.21,87.161,10.324]
[1773257546534,3.89335161,87.21,87.17,2.45778375]
[1773257546736,3.89335161,87.21,87.162,3.56365588]
[1773257547035,3.89335161,87.21,87.164,3.49110489]
[1773257547236,3.89335161,87.21,87.17,5.94888864]
[1773257547832,14.44,87.219,87.171,3.49110489]
[1773257548034,3.89335161,87.217,87.171,3.49110489]
[1773257548232,3.89335161,87.215,87.171,3.49110489]
[1773257548440,6.75927788,87.214,87.171,3.49110489]
[1773257548630,2.86592627,87.213,87.171,3.49110489]
[1773257548833,2.86592627,87.212,87.171,3.49110489]
[1773257549035,2.86592627,87.211,87.171,3.49110489]
[1773257549338,3.89335161,87.214,87.171,3.49110489]
[1773257549640,2.86592627,87.213,87.171,3.49110489]
[1773257549939,2.86602331,87.212,87.171,3.49110489]
[1773257550138,2.86602331,87.211,87.171,3.49110489]
[1773257550333,3.89335161,87.214,87.171,3.49110489]
[1773257550530,2.8660235,87.213,87.171,3.49110489]
[1773257550734,6.75937511,87.212,87.171,3.49110489]
[1773257550937,3.89335161,87.212,87.171,3.49110489]
[1773257551135,14.44,87.223,87.161,3.46850139]
[1773257551136,3.89335161,87.209,87.161,3.46850139]
[1773257551737,3.89335161,87.209,87.17,2.45778375]
[1773257553141,3.89335161,87.209,87.165,10.323]
[1773257553541,3.89335161,87.209,87.15,5.92480253]
[1773257553839,3.89335161,87.199,87.15,3.46701878]
[1773257554041,3.89335161,87.197,87.15,3.46701878]
[1773257554243,3.89335161,87.195,87.15,3.46701878]
[1773257554441,3.89335161,87.193,87.151,10.325]
[1773257554742,2.86607617,87.192,87.151,10.325]
[1773257554940,3.89335161,87.19,87.151,10.325]
[1773257556351,6.35113536,87.19,87.151,10.325]
[1773257558152,6.35113536,87.19,87.152,3.45706356]
[1773257558347,0.00062076,87.198,87.152,3.45706356]
[1773257558553,14.40180358,87.368,87.265,160.406]
[1773257558755,14.40125215,87.368,87.327,10.304]
[1773257559055,14.40125215,87.368,87.265,160.406]
[1773257559056,0.00033777,87.379,87.36,2.45778375]
[1773257559258,0.00033777,87.379,87.33,2.45778375]
[1773257559453,0.00033777,87.379,87.344,10.302]
[1773257559752,0.00033777,87.379,87.316,10.58345508]
[1773257559956,0.00033777,87.379,87.328,10.304]
[1773257560157,0.00033777,87.379,87.304,10.58345508]
[1773257560353,0.00033777,87.379,87.28,16.69540817]
[1773257560556,10.3,87.366,87.287,10.309]
[1773257561057,7.13025034,87.365,87.287,10.309]
[1773257561360,7.13025034,87.363,87.287,10.309]
[1773257561750,7.13025034,87.363,87.3,10.307]
[1773257561952,7.13025034,87.363,87.28,6.11195309]
[1773257562858,7.13025034,87.363,87.312,10.306]
[1773257563849,7.13025034,87.363,87.28,6.11195309]
[1773257564753,7.16555084,87.36,87.284,10.309]
[1773257566257,7.16555084,87.36,87.297,10.307]
[1773257568161,0.00033777,87.379,87.311,10.306]
[1773257569258,0.00033777,87.379,87.3,6.11195309]
[1773257569259,7.16746353,87.377,87.3,6.11195309]
[1773257569463,7.16746353,87.377,87.259,34.43]
[1773257569464,7.16746353,87.377,87.28,6.11195309]
[1773257570056,7.16741778,87.374,87.297,10.307]
[1773257571456,7.18013787,87.369,87.297,10.307]
[1773257572561,7.18013787,87.369,87.309,10.306]
[1773257573458,7.1760322,87.367,87.28,6.11195309]
[1773257573654,7.1760322,87.367,87.26,6.11195309]
[1773257575465,7.18181003,87.357,87.284,10.309]
[1773257576465,7.18181003,87.353,87.284,10.309]
[1773257577470,7.21033286,87.35,87.293,10.308]
[1773257580068,7.21039914,87.349,87.283,10.309]
[1773257580667,6.11195309,87.37,87.26,6.11195309]
[1773257580668,7.21039914,87.346,87.292,10.308]
[1773257581660,7.21039914,87.346,87.301,10.307]
[1773257581860,7.21039914,87.346,87.26,6.11195309]
[1773257582271,7.21039914,87.346,87.292,10.308]
[1773257582471,7.21039914,87.346,87.26,6.11195309]
[1773257583363,7.21039914,87.346,87.293,10.308]
[1773257583975,7.21539263,87.344,87.293,10.308]
[1773257584168,7.21539263,87.344,87.284,10.309]
[1773257584567,7.21539263,87.34,87.26,6.11195309]
[1773257585467,7.21539263,87.34,87.292,10.308]
[1773257587775,7.13213212,87.338,87.24,6.11195309]
[1773257587973,7.13213212,87.338,87.242,14.42]
[1773257589270,7.12825495,87.326,87.242,14.42]
[1773257589470,7.12825495,87.326,87.243,20.628]
[1773257589676,7.12825495,87.326,87.242,14.42]
[1773257589877,7.12825495,87.326,87.26,6.11195309]
[1773257590675,7.12825495,87.369,87.26,6.11195309]
[1773257591571,7.12825495,87.369,87.27,6.11716597]
[1773257591772,7.14337744,87.35,87.31,10.306]
[1773257592968,7.14164169,87.365,87.318,10.305]
[1773257593276,7.14164169,87.365,87.29,6.11716597]
[1773257594380,17.44264169,87.356,87.31,10.306]
[1773257594879,7.13643216,87.345,87.307,10.306]
[1773257595180,7.13643216,87.345,87.27,6.11716597]
[1773257595580,7.13643216,87.345,87.312,10.306]
[1773257595776,7.13643216,87.345,87.29,6.11716597]
[1773257597480,7.13643216,87.345,87.313,10.306]
[1773257597680,7.14773949,87.363,87.29,6.11716597]
[1773257598076,7.14773949,87.363,87.291,14.42]
[1773257598683,7.14773949,87.382,87.291,14.42]
[1773257599379,7.12655588,87.419,87.31,6.11716597]
[1773257600279,7.12660824,87.386,87.311,20.612]
[1773257600477,7.12660824,87.386,87.312,10.58345508]
[1773257600689,7.12660824,87.386,87.318,10.58345508]
[1773257601186,7.12660824,87.386,87.324,10.58345508]
[1773257602374,7.12660824,87.386,87.347,10.302]
[1773257603183,7.12660824,87.386,87.35,10.58345508]
[1773257604079,17.42360824,87.386,87.35,10.58345508]
[1773257604282,7.1309202,87.385,87.346,10.58345508]
[1773257604480,7.1309202,87.385,87.29,20.617]
[1773257604481,7.1309202,87.385,87.337,10.58345508]
[1773257604676,7.1309202,87.385,87.331,10.58345508]
[1773257605276,7.1309202,87.385,87.29,6.11716597]
[1773257605277,7.12451383,87.364,87.311,14.11127344]
[1773257605483,7.12451383,87.364,87.305,14.11127344]
[1773257605784,7.12451383,87.364,87.31,14.11127344]
[1773257605982,7.12451383,87.364,87.306,14.11127344]
[1773257606183,7.12451383,87.364,87.305,14.11127344]
[1773257606584,7.12451383,87.364,87.309,14.11127344]
[1773257606788,7.12451383,87.364,87.307,14.11127344]
[1773257607085,7.12451383,87.364,87.309,14.11127344]